[Event "Titled Tuesday Blitz July 18 Late 2023"]
[White "Tarasova, Viktoriya"]
[Black "Goltsev, Dmitry"]
[WhiteFideId "4175840"]
[BlackFideId "24176710"]
[WhiteElo "2366"]
[BlackElo "2704"]
[Result "0-1"]
[Round "2"]
[TimeControl "180+2"]
[Date "2023.07.18"]
[WhiteClock "0:00:00"]
[BlackClock "0:01:01"]
[Board "99"]

1. d4 {[%clk 0:03:00]}  Nf6 {[%clk 0:03:00]} 2. c4 {[%clk 0:03:00]}  e6 {[%clk 0:03:01]} 3. Nc3 {[%clk 0:03:01]}  Bb4 {[%clk 0:03:00]} 4. e3 {[%clk 0:03:01]}  b6 {[%clk 0:03:00]} 5. Bd3 {[%clk 0:02:59]}  Bb7 {[%clk 0:03:00]} 6. Nf3 {[%clk 0:03:00]}  O-O {[%clk 0:03:00]} 7. O-O {[%clk 0:03:00]}  Bxc3 {[%clk 0:03:00]} 8. bxc3 {[%clk 0:03:00]}  d6 {[%clk 0:03:01]} 9. Nd2 {[%clk 0:02:55]}  Nbd7 {[%clk 0:03:00]} 10. f4 {[%clk 0:02:55]}  e5 {[%clk 0:03:00]} 11. e4 {[%clk 0:02:44]}  a5 {[%clk 0:02:58]} 12. Qc2 {[%clk 0:02:27]}  Re8 {[%clk 0:02:52]} 13. fxe5 {[%clk 0:01:56]}  dxe5 {[%clk 0:02:53]} 14. d5 {[%clk 0:01:33]}  Nc5 {[%clk 0:02:52]} 15. Nb3 {[%clk 0:01:28]}  Nfd7 {[%clk 0:02:47]} 16. Be3 {[%clk 0:01:26]}  Qe7 {[%clk 0:02:45]} 17. Be2 {[%clk 0:01:16]}  Ba6 {[%clk 0:02:40]} 18. Rad1 {[%clk 0:01:07]}  Qd6 {[%clk 0:02:35]} 19. Nd2 {[%clk 0:00:57]}  f6 {[%clk 0:02:32]} 20. Nf3 {[%clk 0:00:57]}  Rf8 {[%clk 0:02:20]} 21. Nh4 {[%clk 0:00:56]}  g6 {[%clk 0:02:20]} 22. Bg4 {[%clk 0:00:56]}  Bxc4 {[%clk 0:02:17]} 23. Rf2 {[%clk 0:00:53]}  b5 {[%clk 0:02:15]} 24. Rf3 {[%clk 0:00:34]}  Rab8 {[%clk 0:01:52]} 25. Bh6 {[%clk 0:00:31]}  Rf7 {[%clk 0:01:50]} 26. Rg3 {[%clk 0:00:32]}  Kh8 {[%clk 0:01:45]} 27. Rh3 {[%clk 0:00:22]}  Rg8 {[%clk 0:01:40]} 28. Be3 {[%clk 0:00:10]}  Nf8 {[%clk 0:01:29]} 29. Bf3 {[%clk 0:00:10]}  Qe7 {[%clk 0:01:20]} 30. Qf2 {[%clk 0:00:10]}  Nd3 {[%clk 0:01:18]} 31. Qd2 {[%clk 0:00:08]}  Nf4 {[%clk 0:01:16]} 32. Bxf4 {[%clk 0:00:08]}  exf4 {[%clk 0:01:17]} 33. Qxf4 {[%clk 0:00:08]}  Qc5+ {[%clk 0:01:17]} 34. Kh1 {[%clk 0:00:07]}  g5 {[%clk 0:01:17]} 35. Qf5 {[%clk 0:00:05]}  gxh4 {[%clk 0:01:15]} 36. Rxh4 {[%clk 0:00:05]}  Ng6 {[%clk 0:01:09]} 37. Rh3 {[%clk 0:00:05]}  Qd6 {[%clk 0:01:06]} 38. Bh5 {[%clk 0:00:04]}  Qe5 {[%clk 0:01:04]} 39. Qf3 {[%clk 0:00:00]}  Rfg7 {[%clk 0:01:01]} 0-1


[Site "https://www.chess.com"]

[Event "Titled Tuesday Blitz July 18 Late 2023"]
[White "Herbst, Richard"]
[Black "Dobrikov, Marco"]
[WhiteFideId "2041251"]
[BlackFideId "12950378"]
[WhiteElo "2324"]
[BlackElo "2568"]
[Result "0-1"]
[Round "2"]
[TimeControl "180+2"]
[Date "2023.07.18"]
[WhiteClock "0:00:00"]
[BlackClock "0:00:30"]
[Board "102"]

1. e4 {[%clk 0:02:59]}  c6 {[%clk 0:02:57]} 2. d4 {[%clk 0:02:58]}  d5 {[%clk 0:02:58]} 3. e5 {[%clk 0:02:58]}  Bf5 {[%clk 0:02:58]} 4. Nf3 {[%clk 0:02:58]}  e6 {[%clk 0:02:58]} 5. Be2 {[%clk 0:02:59]}  c5 {[%clk 0:02:57]} 6. c3 {[%clk 0:02:59]}  Nc6 {[%clk 0:02:57]} 7. O-O {[%clk 0:02:58]}  cxd4 {[%clk 0:02:54]} 8. cxd4 {[%clk 0:02:58]}  Rc8 {[%clk 0:02:55]} 9. Nc3 {[%clk 0:02:57]}  a6 {[%clk 0:02:55]} 10. Be3 {[%clk 0:02:52]}  Qb6 {[%clk 0:02:55]} 11. Na4 {[%clk 0:02:52]}  Qa5 {[%clk 0:02:52]} 12. a3 {[%clk 0:02:40]}  Nge7 {[%clk 0:02:43]} 13. b4 {[%clk 0:02:38]}  Qc7 {[%clk 0:02:43]} 14. Rc1 {[%clk 0:02:36]}  h6 {[%clk 0:02:33]} 15. h3 {[%clk 0:02:33]}  g5 {[%clk 0:02:33]} 16. Qd2 {[%clk 0:02:24]}  Ng6 {[%clk 0:02:32]} 17. Kh2 {[%clk 0:02:19]}  Be7 {[%clk 0:02:31]} 18. Ne1 {[%clk 0:02:17]}  Nf4 {[%clk 0:02:26]} 19. Bf3 {[%clk 0:01:57]}  Kf8 {[%clk 0:02:21]} 20. Nc5 {[%clk 0:01:57]}  Kg7 {[%clk 0:02:21]} 21. Rc3 {[%clk 0:01:49]}  f6 {[%clk 0:02:11]} 22. Bxf4 {[%clk 0:01:43]}  gxf4 {[%clk 0:02:10]} 23. Ncd3 {[%clk 0:01:27]}  fxe5 {[%clk 0:02:07]} 24. Nxe5 {[%clk 0:01:26]}  Bd6 {[%clk 0:02:03]} 25. N1d3 {[%clk 0:01:21]}  Bxd3 {[%clk 0:02:00]} 26. Nxd3 {[%clk 0:01:16]}  Qf7 {[%clk 0:01:58]} 27. Rfc1 {[%clk 0:01:11]}  Rce8 {[%clk 0:01:53]} 28. Nc5 {[%clk 0:01:07]}  Bxc5 {[%clk 0:01:49]} 29. Rxc5 {[%clk 0:01:02]}  Qf6 {[%clk 0:01:50]} 30. Rd1 {[%clk 0:00:46]}  Rhf8 {[%clk 0:01:49]} 31. b5 {[%clk 0:00:46]}  axb5 {[%clk 0:01:49]} 32. Rxb5 {[%clk 0:00:47]}  Re7 {[%clk 0:01:49]} 33. Qb2 {[%clk 0:00:45]}  Rff7 {[%clk 0:01:48]} 34. a4 {[%clk 0:00:43]}  Nb8 {[%clk 0:01:35]} 35. Bh5 {[%clk 0:00:41]}  Rf8 {[%clk 0:01:32]} 36. Rxb7 {[%clk 0:00:41]}  Nc6 {[%clk 0:01:27]} 37. Rc1 {[%clk 0:00:31]}  Nd8 {[%clk 0:00:48]} 38. Rxe7+ {[%clk 0:00:28]}  Qxe7 {[%clk 0:00:49]} 39. Qb6 {[%clk 0:00:27]}  Kh8 {[%clk 0:00:47]} 40. Rc7 {[%clk 0:00:26]}  Qf6 {[%clk 0:00:47]} 41. Bf3 {[%clk 0:00:20]}  Nf7 {[%clk 0:00:44]} 42. Bg4 {[%clk 0:00:17]}  Ng5 {[%clk 0:00:43]} 43. f3 {[%clk 0:00:15]}  Qg6 {[%clk 0:00:32]} 44. a5 {[%clk 0:00:15]}  h5 {[%clk 0:00:32]} 45. Bxh5 {[%clk 0:00:03]}  Qxh5 {[%clk 0:00:33]} 46. Qb7 {[%clk 0:00:03]}  Qg6 {[%clk 0:00:30]} 47. a6 {[%clk 0:00:00]}  Rg8 {[%clk 0:00:30]} 0-1


[Site "https://www.chess.com"]

[Event "Titled Tuesday Blitz July 18 Late 2023"]
[White "Cruz, William Ferreira Da"]
[Black "Altman, Joshua"]
[WhiteFideId "2118050"]
[BlackFideId "426210"]
[WhiteElo "2304"]
[BlackElo "2564"]
[Result "1-0"]
[Round "2"]
[TimeControl "180+2"]
[Date "2023.07.18"]
[WhiteClock "0:00:08"]
[BlackClock "0:00:05"]
[Board "103"]

1. d4 {[%clk 0:03:00]}  c5 {[%clk 0:02:56]} 2. d5 {[%clk 0:03:00]}  Nf6 {[%clk 0:02:56]} 3. c4 {[%clk 0:02:59]}  e6 {[%clk 0:02:50]} 4. Nc3 {[%clk 0:02:59]}  exd5 {[%clk 0:02:51]} 5. cxd5 {[%clk 0:02:58]}  d6 {[%clk 0:02:51]} 6. Nf3 {[%clk 0:02:52]}  g6 {[%clk 0:02:51]} 7. h3 {[%clk 0:02:52]}  Bg7 {[%clk 0:02:50]} 8. Bf4 {[%clk 0:02:52]}  a6 {[%clk 0:02:50]} 9. a4 {[%clk 0:02:50]}  O-O {[%clk 0:02:49]} 10. e3 {[%clk 0:02:49]}  Re8 {[%clk 0:02:49]} 11. Nd2 {[%clk 0:02:49]}  Nbd7 {[%clk 0:02:47]} 12. Be2 {[%clk 0:02:47]}  Ne5 {[%clk 0:02:42]} 13. O-O {[%clk 0:02:33]}  Rb8 {[%clk 0:02:20]} 14. Bh2 {[%clk 0:02:24]}  b5 {[%clk 0:01:47]} 15. axb5 {[%clk 0:02:23]}  axb5 {[%clk 0:01:47]} 16. Bxb5 {[%clk 0:02:17]}  Bd7 {[%clk 0:01:48]} 17. Be2 {[%clk 0:01:55]}  c4 {[%clk 0:01:06]} 18. Bxe5 {[%clk 0:01:38]}  dxe5 {[%clk 0:00:53]} 19. Nxc4 {[%clk 0:01:37]}  Bf5 {[%clk 0:00:32]} 20. Qd2 {[%clk 0:01:08]}  Ne4 {[%clk 0:00:23]} 21. Nxe4 {[%clk 0:01:06]}  Bxe4 {[%clk 0:00:24]} 22. Rfd1 {[%clk 0:01:01]}  Qg5 {[%clk 0:00:21]} 23. f3 {[%clk 0:00:53]}  Bf5 {[%clk 0:00:21]} 24. e4 {[%clk 0:00:44]}  Qxd2 {[%clk 0:00:16]} 25. Rxd2 {[%clk 0:00:43]}  Bd7 {[%clk 0:00:17]} 26. Rc2 {[%clk 0:00:36]}  Bh6 {[%clk 0:00:13]} 27. Kf2 {[%clk 0:00:33]}  Rec8 {[%clk 0:00:11]} 28. Ra2 {[%clk 0:00:21]}  Bb5 {[%clk 0:00:11]} 29. b3 {[%clk 0:00:20]}  Bd7 {[%clk 0:00:06]} 30. Nxe5 {[%clk 0:00:18]}  Be8 {[%clk 0:00:02]} 31. Bc4 {[%clk 0:00:16]}  Bg7 {[%clk 0:00:02]} 32. Nd3 {[%clk 0:00:14]}  Bd4+ {[%clk 0:00:03]} 33. Ke2 {[%clk 0:00:14]}  Bb5 {[%clk 0:00:02]} 34. Bxb5 {[%clk 0:00:13]}  Rxc2+ {[%clk 0:00:02]} 35. Rxc2 {[%clk 0:00:13]}  Rxb5 {[%clk 0:00:03]} 36. Nc1 {[%clk 0:00:13]}  Be5 {[%clk 0:00:03]} 37. Ke3 {[%clk 0:00:11]}  g5 {[%clk 0:00:03]} 38. Nd3 {[%clk 0:00:10]}  Bd6 {[%clk 0:00:03]} 39. e5 {[%clk 0:00:10]}  Bb8 {[%clk 0:00:03]} 40. Ke4 {[%clk 0:00:10]}  Ba7 {[%clk 0:00:04]} 41. Rc8+ {[%clk 0:00:09]}  Kg7 {[%clk 0:00:04]} 42. Rc3 {[%clk 0:00:09]}  Bb6 {[%clk 0:00:04]} 43. d6 {[%clk 0:00:09]}  Ba5 {[%clk 0:00:04]} 44. Rc4 {[%clk 0:00:08]}  Rxb3 {[%clk 0:00:04]} 45. Nc5 {[%clk 0:00:09]}  Bd2 {[%clk 0:00:04]} 46. Nxb3 {[%clk 0:00:08]}  Bf4 {[%clk 0:00:03]} 47. d7 {[%clk 0:00:07]}  g4 {[%clk 0:00:04]} 48. d8=Q {[%clk 0:00:08]}  Bg5 {[%clk 0:00:05]} 49. Qxg5+ {[%clk 0:00:08]}  Kf8 {[%clk 0:00:05]} 50. Rc8# {[%clk 0:00:08]} 1-0


[Site "https://www.chess.com"]

[Event "Titled Tuesday Blitz July 18 Late 2023"]
[White "Barwinska, Ewa"]
[Black "Gatineau, Yovann"]
[WhiteFideId "21833761"]
[BlackFideId "26028999"]
[WhiteElo "2308"]
[BlackElo "2559"]
[Result "0-1"]
[Round "2"]
[TimeControl "180+2"]
[Date "2023.07.18"]
[WhiteClock "0:00:01"]
[BlackClock "0:00:06"]
[Board "104"]

1. e4 {[%clk 0:02:52]}  c5 {[%clk 0:02:58]} 2. b3 {[%clk 0:02:51]}  Nf6 {[%clk 0:02:57]} 3. e5 {[%clk 0:02:43]}  Nd5 {[%clk 0:02:55]} 4. c4 {[%clk 0:02:38]}  Nc7 {[%clk 0:02:54]} 5. Bb2 {[%clk 0:02:34]}  Nc6 {[%clk 0:02:53]} 6. Nf3 {[%clk 0:02:30]}  d5 {[%clk 0:02:49]} 7. exd6 {[%clk 0:02:29]}  Qxd6 {[%clk 0:02:49]} 8. d4 {[%clk 0:02:26]}  cxd4 {[%clk 0:02:47]} 9. Nxd4 {[%clk 0:02:27]}  e5 {[%clk 0:02:36]} 10. Nxc6 {[%clk 0:02:18]}  Qxc6 {[%clk 0:02:33]} 11. Bxe5 {[%clk 0:02:06]}  Bb4+ {[%clk 0:02:32]} 12. Bc3 {[%clk 0:02:03]}  Bxc3+ {[%clk 0:02:25]} 13. Nxc3 {[%clk 0:02:04]}  O-O {[%clk 0:02:26]} 14. Qf3 {[%clk 0:02:03]}  Re8+ {[%clk 0:02:11]} 15. Be2 {[%clk 0:02:02]}  Qxf3 {[%clk 0:02:11]} 16. gxf3 {[%clk 0:02:03]}  Ne6 {[%clk 0:02:09]} 17. O-O-O {[%clk 0:01:59]}  Nf4 {[%clk 0:02:07]} 18. Rhe1 {[%clk 0:01:52]}  Bf5 {[%clk 0:02:04]} 19. Bf1 {[%clk 0:01:49]}  g5 {[%clk 0:01:55]} 20. Ne4 {[%clk 0:01:48]}  Bxe4 {[%clk 0:01:51]} 21. fxe4 {[%clk 0:01:48]}  Re7 {[%clk 0:01:40]} 22. f3 {[%clk 0:01:43]}  Kg7 {[%clk 0:01:30]} 23. Kc2 {[%clk 0:01:37]}  h5 {[%clk 0:01:28]} 24. Be2 {[%clk 0:01:31]}  Rae8 {[%clk 0:01:21]} 25. Kc3 {[%clk 0:01:22]}  f5 {[%clk 0:01:18]} 26. Bd3 {[%clk 0:01:18]}  Kf6 {[%clk 0:01:14]} 27. Bb1 {[%clk 0:00:59]}  h4 {[%clk 0:00:58]} 28. Rd6+ {[%clk 0:00:58]}  Re6 {[%clk 0:00:53]} 29. exf5 {[%clk 0:00:46]}  Rxd6 {[%clk 0:00:48]} 30. Rxe8 {[%clk 0:00:45]}  Rd1 {[%clk 0:00:46]} 31. Bc2 {[%clk 0:00:43]}  Rf1 {[%clk 0:00:45]} 32. Be4 {[%clk 0:00:38]}  Rf2 {[%clk 0:00:40]} 33. Rf8+ {[%clk 0:00:35]}  Kg7 {[%clk 0:00:31]} 34. Rb8 {[%clk 0:00:36]}  Rxh2 {[%clk 0:00:30]} 35. Rxb7+ {[%clk 0:00:37]}  Kf6 {[%clk 0:00:30]} 36. Rxa7 {[%clk 0:00:36]}  h3 {[%clk 0:00:29]} 37. Ra6+ {[%clk 0:00:36]}  Kf7 {[%clk 0:00:25]} 38. Ra7+ {[%clk 0:00:33]}  Kf6 {[%clk 0:00:25]} 39. Rh7 {[%clk 0:00:33]}  Rxa2 {[%clk 0:00:24]} 40. c5 {[%clk 0:00:31]}  Ra1 {[%clk 0:00:06]} 41. c6 {[%clk 0:00:27]}  Rc1+ {[%clk 0:00:06]} 42. Kd2 {[%clk 0:00:21]}  Rc5 {[%clk 0:00:06]} 43. b4 {[%clk 0:00:18]}  Rc4 {[%clk 0:00:07]} 44. c7 {[%clk 0:00:16]}  Ke5 {[%clk 0:00:05]} 45. b5 {[%clk 0:00:13]}  Rd4+ {[%clk 0:00:05]} 46. Ke1 {[%clk 0:00:10]}  Ng2+ {[%clk 0:00:06]} 47. Kf2 {[%clk 0:00:10]}  Rd2+ {[%clk 0:00:06]} 48. Kg3 {[%clk 0:00:10]}  Nf4 {[%clk 0:00:06]} 49. Kg4 {[%clk 0:00:01]}  Rg2# {[%clk 0:00:06]} 0-1


[Site "https://www.chess.com"]

[Event "Titled Tuesday Blitz July 18 Late 2023"]
[White "Rottenwohrer Suarez, Juan"]
[Black "StarkyNZ"]
[WhiteFideId "32068182"]
[WhiteElo "2546"]
[BlackElo "2287"]
[Result "0-1"]
[Round "2"]
[TimeControl "180+2"]
[Date "2023.07.18"]
[WhiteClock "0:00:00"]
[BlackClock "0:00:54"]
[Board "106"]

1. e4 {[%clk 0:03:00]}  c6 {[%clk 0:02:58]} 2. d4 {[%clk 0:02:57]}  d5 {[%clk 0:02:58]} 3. exd5 {[%clk 0:02:58]}  cxd5 {[%clk 0:02:57]} 4. Bd3 {[%clk 0:02:58]}  Nc6 {[%clk 0:02:56]} 5. Ne2 {[%clk 0:02:58]}  g6 {[%clk 0:02:53]} 6. O-O {[%clk 0:02:57]}  Nh6 {[%clk 0:02:51]} 7. c3 {[%clk 0:02:51]}  Bg7 {[%clk 0:02:50]} 8. Bg5 {[%clk 0:02:41]}  f6 {[%clk 0:02:47]} 9. Be3 {[%clk 0:02:25]}  O-O {[%clk 0:02:44]} 10. h3 {[%clk 0:02:24]}  Nf5 {[%clk 0:02:40]} 11. Nd2 {[%clk 0:02:15]}  Nxe3 {[%clk 0:02:36]} 12. fxe3 {[%clk 0:02:16]}  e5 {[%clk 0:02:37]} 13. Qb3 {[%clk 0:02:05]}  Bh6 {[%clk 0:02:31]} 14. Rf3 {[%clk 0:01:49]}  Na5 {[%clk 0:02:28]} 15. Qb5 {[%clk 0:01:15]}  e4 {[%clk 0:02:27]} 16. Nxe4 {[%clk 0:01:15]}  a6 {[%clk 0:02:09]} 17. Qc5 {[%clk 0:00:51]}  b6 {[%clk 0:02:02]} 18. Qd6 {[%clk 0:00:35]}  dxe4 {[%clk 0:02:00]} 19. Qxd8 {[%clk 0:00:36]}  Rxd8 {[%clk 0:02:00]} 20. Bxe4 {[%clk 0:00:37]}  Ra7 {[%clk 0:01:46]} 21. Rxf6 {[%clk 0:00:36]}  Bxe3+ {[%clk 0:01:44]} 22. Kh1 {[%clk 0:00:35]}  Re7 {[%clk 0:01:40]} 23. Bd3 {[%clk 0:00:26]}  b5 {[%clk 0:01:38]} 24. Raf1 {[%clk 0:00:22]}  Nc4 {[%clk 0:01:22]} 25. b3 {[%clk 0:00:17]}  Nd2 {[%clk 0:01:18]} 26. Rd1 {[%clk 0:00:17]}  Bg5 {[%clk 0:01:16]} 27. Rf2 {[%clk 0:00:15]}  Bb7 {[%clk 0:01:11]} 28. Ng3 {[%clk 0:00:13]}  Re3 {[%clk 0:01:05]} 29. Rdxd2 {[%clk 0:00:06]}  Rxg3 {[%clk 0:01:05]} 30. Rd1 {[%clk 0:00:07]}  Rxh3+ {[%clk 0:01:02]} 31. Kg1 {[%clk 0:00:07]}  Rg3 {[%clk 0:01:02]} 32. Kh2 {[%clk 0:00:05]}  Re3 {[%clk 0:00:56]} 33. Bf1 {[%clk 0:00:03]}  Rxc3 {[%clk 0:00:54]} 34. Kg1 {[%clk 0:00:00]}  Be3 {[%clk 0:00:54]} 0-1


[Site "https://www.chess.com"]

[Event "Titled Tuesday Blitz July 18 Late 2023"]
[White "Sjugirov, Sanan"]
[Black "Yolosz"]
[WhiteFideId "4189302"]
[WhiteElo "2934"]
[BlackElo "2397"]
[Result "1-0"]
[Round "2"]
[TimeControl "180+2"]
[Date "2023.07.18"]
[WhiteClock "0:02:54"]
[BlackClock "0:00:21"]
[Board "109"]

1. e4 {[%clk 0:03:00]}  c5 {[%clk 0:02:58]} 2. Nf3 {[%clk 0:03:01]}  Nc6 {[%clk 0:02:58]} 3. Bb5 {[%clk 0:03:01]}  d6 {[%clk 0:02:56]} 4. O-O {[%clk 0:02:59]}  Bd7 {[%clk 0:02:44]} 5. Re1 {[%clk 0:02:59]}  e5 {[%clk 0:02:42]} 6. c3 {[%clk 0:02:59]}  Be7 {[%clk 0:02:16]} 7. d4 {[%clk 0:02:59]}  cxd4 {[%clk 0:02:05]} 8. cxd4 {[%clk 0:02:59]}  Nxd4 {[%clk 0:01:59]} 9. Bxd7+ {[%clk 0:02:58]}  Qxd7 {[%clk 0:01:59]} 10. Nxd4 {[%clk 0:02:59]}  exd4 {[%clk 0:01:58]} 11. Qxd4 {[%clk 0:03:00]}  Bf6 {[%clk 0:01:34]} 12. Qd3 {[%clk 0:03:00]}  Ne7 {[%clk 0:01:33]} 13. Nc3 {[%clk 0:03:01]}  O-O {[%clk 0:01:29]} 14. e5 {[%clk 0:03:01]}  Bh4 {[%clk 0:01:16]} 15. g3 {[%clk 0:03:01]}  Qg4 {[%clk 0:00:59]} 16. Re4 {[%clk 0:02:59]}  Qg6 {[%clk 0:00:21]} 17. Qxd6 {[%clk 0:02:54]} 1-0


[Site "https://www.chess.com"]

[Event "Titled Tuesday Blitz July 18 Late 2023"]
[White "Leiva, Gianmarco"]
[Black "Al Mukhaini, Shima"]
[WhiteFideId "3804399"]
[BlackFideId "22005854"]
[WhiteElo "2731"]
[BlackElo "2393"]
[Result "0-1"]
[Round "2"]
[TimeControl "180+2"]
[Date "2023.07.18"]
[WhiteClock "0:00:04"]
[BlackClock "0:01:16"]
[Board "113"]

1. e4 {[%clk 0:03:00]}  d5 {[%clk 0:03:00]} 2. exd5 {[%clk 0:02:57]}  Nf6 {[%clk 0:03:00]} 3. Nf3 {[%clk 0:02:55]}  Qxd5 {[%clk 0:02:59]} 4. d4 {[%clk 0:02:53]}  Bg4 {[%clk 0:02:57]} 5. Be2 {[%clk 0:02:49]}  Nc6 {[%clk 0:02:57]} 6. Nc3 {[%clk 0:02:44]}  Qa5 {[%clk 0:02:57]} 7. h3 {[%clk 0:02:42]}  Bh5 {[%clk 0:02:55]} 8. Be3 {[%clk 0:02:14]}  O-O-O {[%clk 0:02:54]} 9. Nd2 {[%clk 0:01:43]}  Bxe2 {[%clk 0:02:52]} 10. Qxe2 {[%clk 0:01:42]}  Nxd4 {[%clk 0:02:53]} 11. Bxd4 {[%clk 0:01:42]}  Rxd4 {[%clk 0:02:53]} 12. Nb3 {[%clk 0:01:43]}  Qb6 {[%clk 0:02:50]} 13. Nxd4 {[%clk 0:01:38]}  Qxd4 {[%clk 0:02:51]} 14. Rd1 {[%clk 0:01:37]}  Qb4 {[%clk 0:02:39]} 15. Qd3 {[%clk 0:01:30]}  Qd6 {[%clk 0:02:36]} 16. Qf5+ {[%clk 0:01:27]}  e6 {[%clk 0:02:36]} 17. Rxd6 {[%clk 0:01:20]}  exf5 {[%clk 0:02:36]} 18. Rd3 {[%clk 0:01:19]}  Bd6 {[%clk 0:02:30]} 19. O-O {[%clk 0:01:18]}  a6 {[%clk 0:02:30]} 20. Re1 {[%clk 0:01:16]}  g6 {[%clk 0:02:25]} 21. Kf1 {[%clk 0:01:13]}  Rd8 {[%clk 0:02:24]} 22. Nd5 {[%clk 0:01:10]}  Nxd5 {[%clk 0:02:22]} 23. Rxd5 {[%clk 0:01:10]}  b5 {[%clk 0:02:19]} 24. g4 {[%clk 0:01:07]}  f4 {[%clk 0:02:12]} 25. Kg2 {[%clk 0:01:06]}  Kb7 {[%clk 0:02:11]} 26. Kf3 {[%clk 0:01:05]}  Kc6 {[%clk 0:02:09]} 27. Rd3 {[%clk 0:01:04]}  a5 {[%clk 0:02:07]} 28. a4 {[%clk 0:01:00]}  bxa4 {[%clk 0:02:06]} 29. Ra1 {[%clk 0:01:00]}  Rb8 {[%clk 0:02:05]} 30. Rxa4 {[%clk 0:00:59]}  Rxb2 {[%clk 0:02:05]} 31. Rxa5 {[%clk 0:00:52]}  Rxc2 {[%clk 0:02:05]} 32. Ra6+ {[%clk 0:00:35]}  Kb7 {[%clk 0:02:03]} 33. Raxd6 {[%clk 0:00:26]}  cxd6 {[%clk 0:02:02]} 34. Rxd6 {[%clk 0:00:27]}  Kc8 {[%clk 0:01:59]} 35. Rf6 {[%clk 0:00:27]}  Rc7 {[%clk 0:01:57]} 36. Kxf4 {[%clk 0:00:27]}  Kd8 {[%clk 0:01:57]} 37. Kg5 {[%clk 0:00:27]}  Ke7 {[%clk 0:01:57]} 38. Ra6 {[%clk 0:00:25]}  Rc3 {[%clk 0:01:43]} 39. Ra7+ {[%clk 0:00:08]}  Kf8 {[%clk 0:01:42]} 40. f4 {[%clk 0:00:07]}  Kg7 {[%clk 0:01:39]} 41. f5 {[%clk 0:00:04]}  h6+ {[%clk 0:01:32]} 42. Kf4 {[%clk 0:00:04]}  g5+ {[%clk 0:01:27]} 43. Ke4 {[%clk 0:00:03]}  Rxh3 {[%clk 0:01:27]} 44. f6+ {[%clk 0:00:03]}  Kg6 {[%clk 0:01:27]} 45. Ra6 {[%clk 0:00:01]}  Rg3 {[%clk 0:01:26]} 46. Ke5 {[%clk 0:00:02]}  Rxg4 {[%clk 0:01:25]} 47. Kd6 {[%clk 0:00:03]}  Kxf6 {[%clk 0:01:25]} 48. Kd7+ {[%clk 0:00:03]}  Kg7 {[%clk 0:01:25]} 49. Rd6 {[%clk 0:00:02]}  Re4 {[%clk 0:01:24]} 50. Rd2 {[%clk 0:00:01]}  Re6 {[%clk 0:01:24]} 51. Rf2 {[%clk 0:00:01]}  Kg6 {[%clk 0:01:24]} 52. Rf1 {[%clk 0:00:01]}  h5 {[%clk 0:01:24]} 53. Kd8 {[%clk 0:00:01]}  h4 {[%clk 0:01:24]} 54. Rb1 {[%clk 0:00:01]}  g4 {[%clk 0:01:22]} 55. Kd7 {[%clk 0:00:02]}  Re4 {[%clk 0:01:19]} 56. Rb8 {[%clk 0:00:01]}  Kg7 {[%clk 0:01:19]} 57. Rb5 {[%clk 0:00:01]}  f6 {[%clk 0:01:19]} 58. Rh5 {[%clk 0:00:02]}  g3 {[%clk 0:01:17]} 59. Kd6 {[%clk 0:00:02]}  g2 {[%clk 0:01:17]} 60. Kd5 {[%clk 0:00:02]}  Re5+ {[%clk 0:01:17]} 61. Kd6 {[%clk 0:00:02]}  Rxh5 {[%clk 0:01:16]} 62. Kd7 {[%clk 0:00:02]}  Re5 {[%clk 0:01:16]} 63. Kd6 {[%clk 0:00:02]}  g1=Q {[%clk 0:01:16]} 64. Kc7 {[%clk 0:00:03]}  Qd4 {[%clk 0:01:16]} 65. Kc6 {[%clk 0:00:03]}  Rc5+ {[%clk 0:01:16]} 66. Kb7 {[%clk 0:00:04]}  Qb4+ {[%clk 0:01:16]} 67. Ka6 {[%clk 0:00:04]}  Ra5# {[%clk 0:01:16]} 0-1


[Site "https://www.chess.com"]

[Event "Titled Tuesday Blitz July 18 Late 2023"]
[White "Hoffmann, Asa"]
[Black "Velikanov, Alexander"]
[WhiteFideId "2001470"]
[BlackFideId "2039290"]
[WhiteElo "2393"]
[BlackElo "2692"]
[Result "0-1"]
[Round "2"]
[TimeControl "180+2"]
[Date "2023.07.18"]
[WhiteClock "0:00:10"]
[BlackClock "0:00:30"]
[Board "114"]

1. d4 {[%clk 0:02:54]}  g6 {[%clk 0:03:00]} 2. e4 {[%clk 0:02:52]}  Bg7 {[%clk 0:03:00]} 3. Be3 {[%clk 0:02:52]}  Nf6 {[%clk 0:02:55]} 4. f3 {[%clk 0:02:51]}  d5 {[%clk 0:02:49]} 5. e5 {[%clk 0:02:51]}  Nfd7 {[%clk 0:02:49]} 6. Qd2 {[%clk 0:02:50]}  c5 {[%clk 0:02:49]} 7. c3 {[%clk 0:02:50]}  Nc6 {[%clk 0:02:48]} 8. Ne2 {[%clk 0:02:49]}  f6 {[%clk 0:02:42]} 9. f4 {[%clk 0:02:44]}  O-O {[%clk 0:02:27]} 10. h4 {[%clk 0:02:44]}  fxe5 {[%clk 0:02:11]} 11. fxe5 {[%clk 0:02:43]}  Ndxe5 {[%clk 0:02:08]} 12. dxe5 {[%clk 0:02:41]}  Nxe5 {[%clk 0:02:08]} 13. Na3 {[%clk 0:02:25]}  b6 {[%clk 0:01:57]} 14. O-O-O {[%clk 0:02:21]}  Ng4 {[%clk 0:01:34]} 15. h5 {[%clk 0:02:08]}  e5 {[%clk 0:01:08]} 16. hxg6 {[%clk 0:02:04]}  hxg6 {[%clk 0:01:09]} 17. Bg5 {[%clk 0:01:56]}  Bf6 {[%clk 0:01:09]} 18. Bxf6 {[%clk 0:01:51]}  Qxf6 {[%clk 0:01:10]} 19. Rh3 {[%clk 0:01:18]}  e4 {[%clk 0:00:59]} 20. Qxd5+ {[%clk 0:01:14]}  Be6 {[%clk 0:00:59]} 21. Qxe4 {[%clk 0:01:09]}  Nf2 {[%clk 0:00:58]} 22. Qh4 {[%clk 0:01:03]}  Qxh4 {[%clk 0:00:56]} 23. Rxh4 {[%clk 0:01:02]}  Nxd1 {[%clk 0:00:56]} 24. Nf4 {[%clk 0:00:53]}  g5 {[%clk 0:00:51]} 25. Rh5 {[%clk 0:00:36]}  Rxf4 {[%clk 0:00:46]} 26. Rxg5+ {[%clk 0:00:35]}  Kf7 {[%clk 0:00:45]} 27. Be2 {[%clk 0:00:25]}  Ne3 {[%clk 0:00:37]} 28. Bf3 {[%clk 0:00:22]}  Rd8 {[%clk 0:00:34]} 29. Nb5 {[%clk 0:00:10]}  Rxf3 {[%clk 0:00:30]} 0-1


[Site "https://www.chess.com"]